fUSD/lending_fUSD_20250407
["ID","MTS","AMOUNT","RATE_DAILY","PERIOD"]
[357413489,1744052002092,-9111.53792,0.00044931,30]
[357413490,1744052002124,-205.563459,0.00044931,30]
[357413491,1744052002155,-584.49902611,0.00044931,30]
[357413492,1744052002186,-500.0,0.00044931,30]
[357413493,1744052002221,-500.0,0.00044931,30]
[357413494,1744052002257,-500.0,0.00044931,30]
[357413495,1744052002300,-500.0,0.00044931,30]
[357413496,1744052002333,-500.0,0.00044931,30]
[357413497,1744052002365,-191.4130669,0.00044931,30]
[357413498,1744052002396,-500.0,0.00044931,30]
[357413499,1744052002428,-500.0,0.00044931,30]
[357413500,1744052002460,-500.0,0.00044931,30]
[357413501,1744052002491,-500.0,0.00044931,30]
[357413502,1744052002522,-500.0,0.00044931,30]
[357413503,1744052002553,-500.0,0.00044931,30]
[357413504,1744052002583,-217.89282675,0.00044931,30]
[357413505,1744052002614,-547.11,0.00044931,30]
[357413506,1744052002646,-500.0,0.00044931,30]
[357413507,1744052002677,-500.0,0.00044931,30]
[357413508,1744052002708,-500.0,0.00044931,30]
[357413509,1744052002739,-500.0,0.00044931,30]
[357413510,1744052002770,-500.0,0.00044931,30]
[357413511,1744052002800,-500.0,0.00044931,30]
[357413512,1744052002833,-960.42,0.00044931,30]
[357413513,1744052002864,-500.0,0.00044931,30]
[357413514,1744052002896,-500.0,0.00044931,30]
[357413515,1744052002927,-500.0,0.00044931,30]
[357413516,1744052002958,-500.0,0.00044931,30]
[357413517,1744052002989,-500.0,0.00044931,30]
[357413518,1744052003020,-500.0,0.00044931,30]
[357413519,1744052003050,-500.0,0.00044931,30]
[357413520,1744052003082,-188.0,0.00044931,30]
[357413521,1744052003115,-822.99,0.00044931,30]
[357413522,1744052003146,-505.1497574,0.00044931,30]
[357413523,1744052003177,-500.0,0.00044931,30]
[357413524,1744052003208,-500.0,0.00044931,30]
[357413525,1744052003239,-500.0,0.00044931,30]
[357413526,1744052003271,-500.0,0.00044931,30]
[357413527,1744052003304,-500.0,0.00044931,30]
[357413528,1744052003335,-500.0,0.00044931,30]
[357413529,1744052003367,-500.0,0.00044931,30]
[357413530,1744052003400,-500.0,0.00044931,30]
[357413531,1744052003433,-500.0,0.00044931,30]
[357413532,1744052003466,-1310.09,0.00044931,30]
[357413533,1744052003499,-725.3,0.00044931,30]
[357413534,1744052003532,-500.0,0.00044931,30]
[357413535,1744052003563,-500.0,0.00044931,30]
[357413536,1744052003595,-500.0,0.00044931,30]
[357413537,1744052003627,-500.0,0.00044931,30]
[357413538,1744052003658,-500.0,0.00044931,30]
[357413539,1744052003690,-500.0,0.00044931,30]
[357413540,1744052003722,-500.0,0.00044931,30]
[357413541,1744052003756,-500.0,0.00044931,30]
[357413542,1744052003787,-500.0,0.00044931,30]
[357413543,1744052003820,-500.0,0.00044931,30]
[357413544,1744052003852,-500.0,0.00044931,30]
[357413545,1744052003883,-500.0,0.00044931,30]
[357413546,1744052003916,-500.0,0.00044931,30]
[357413547,1744052003947,-500.0,0.00044931,30]
[357413548,1744052003978,-500.0,0.00044931,30]
[357413549,1744052004010,-563.24,0.00044931,30]
[357413550,1744052004040,-500.0,0.00044931,30]
[357413551,1744052004071,-623.31,0.00044931,30]
[357413552,1744052004103,-500.0,0.00044931,30]
[357413553,1744052004133,-500.0,0.00044931,30]
[357413554,1744052004164,-635.68252593,0.00044931,30]
[357413555,1744052004194,-500.0,0.00044931,30]
[357413556,1744052004225,-500.0,0.00044931,30]
[357413557,1744052004257,-500.0,0.00044931,30]
[357413558,1744052004288,-520.03,0.00044931,30]
[357413559,1744052004319,-500.0,0.00044931,30]
[357413560,1744052004350,-500.0,0.00044931,30]
[357413561,1744052004380,-500.0,0.00044931,30]
[357413562,1744052004410,-500.0,0.00044931,30]
[357413563,1744052004604,-500.0,0.00044931,30]
[357413564,1744052004636,-500.0,0.00044931,30]
[357413565,1744052004670,-500.0,0.00044931,30]
[357413566,1744052004702,-500.0,0.00044931,30]
[357413567,1744052004733,-843.02,0.00044931,30]
[357413568,1744052004766,-607.5172894,0.00044931,30]
[357413569,1744052004798,-500.0,0.00044931,30]
[357413570,1744052004831,-500.0,0.00044931,30]
[357413571,1744052004863,-500.0,0.00044931,30]
[357413572,1744052004894,-424.45906924,0.00044931,30]
[357413573,1744052004927,-500.0,0.00044931,30]
[357413574,1744052004957,-749.93,0.00044931,30]
[357413575,1744052004988,-500.0,0.00044931,30]
[357413576,1744052005021,-500.0,0.00044931,30]
[357413577,1744052005053,-500.0,0.00044931,30]
[357413578,1744052005085,-796.54,0.00044931,30]
[357413579,1744052005117,-500.0,0.00044931,30]
[357413580,1744052005147,-786.13,0.00044931,30]
[357413581,1744052005178,-483.83848057,0.00044931,30]
[357413582,1744052005210,-500.0,0.00044931,30]
[357413583,1744052005243,-706.82,0.00044931,30]
[357413584,1744052005276,-500.0,0.00044931,30]
[357413585,1744052005308,-500.0,0.00044931,30]
[357413586,1744052005340,-529.87,0.00044931,30]
[357413587,1744052005372,-500.0,0.00044931,30]
[357413588,1744052005404,-500.0,0.00044931,30]
[357413589,1744052005436,-500.0,0.00044931,30]
[357413590,1744052005467,-500.0,0.00044931,30]
[357413591,1744052005500,-500.0,0.00044931,30]
[357413592,1744052005532,-500.0,0.00044931,30]
[357413593,1744052005563,-500.0,0.00044931,30]
[357413594,1744052005595,-500.0,0.00044931,30]
[357413595,1744052005626,-500.0,0.00044931,30]
[357413596,1744052005658,-500.0,0.00044931,30]
[357413597,1744052005690,-500.0,0.00044931,30]
[357413598,1744052005722,-500.0,0.00044931,30]
[357413599,1744052005753,-500.0,0.00044931,30]
[357413600,1744052005784,-836.08,0.00044931,30]
[357413601,1744052005815,-524.12532983,0.00044931,30]
[357413602,1744052005848,-566.91591244,0.00044931,30]
[357413603,1744052005878,-500.0,0.00044931,30]
[357413604,1744052005910,-500.0,0.00044931,30]
[357413605,1744052005940,-1000.0,0.00044931,30]
[357413606,1744052005970,-565.42702306,0.00044931,30]
[357413607,1744052006001,-500.0,0.00044931,30]
[357413608,1744052006032,-500.0,0.00044931,30]
[357413609,1744052006063,-500.0,0.00044931,30]
[357413610,1744052006095,-572.38,0.00044931,30]
[357413611,1744052006127,-500.0,0.00044931,30]
[357413612,1744052006159,-573.93,0.00044931,30]
[357413613,1744052006192,-500.0,0.00044931,30]
[357413614,1744052006223,-500.0,0.00044931,30]
[357413615,1744052006259,-680.71,0.00044931,30]
[357413616,1744052006293,-715.14,0.00044931,30]
[357413617,1744052006328,-690.91,0.00044931,30]
[357413618,1744052006362,-994.62,0.00044931,30]
[357413619,1744052006395,-500.0,0.00044931,30]
[357413620,1744052006428,-500.0,0.00044931,30]
[357413621,1744052006461,-500.0,0.00044931,30]
[357413622,1744052006493,-500.0,0.00044931,30]
[357413623,1744052006524,-598.3,0.00044931,30]
[357413624,1744052006555,-500.0,0.00044931,30]
[357413625,1744052006587,-500.0,0.00044931,30]
[357413626,1744052006617,-500.0,0.00044931,30]
[357413627,1744052006648,-500.0,0.00044931,30]
[357413628,1744052006679,-2430.07,0.00044931,30]
[357413629,1744052006712,-500.0,0.00044931,30]
[357413630,1744052006744,-534.8,0.00044931,30]
[357413631,1744052006775,-500.0,0.00044931,30]
[357413632,1744052006806,-500.0,0.00044931,30]
[357413633,1744052006839,-804.6,0.00044931,30]
[357413634,1744052006871,-500.0,0.00044931,30]
[357413635,1744052006902,-500.0,0.00044931,30]
[357413636,1744052006934,-500.0,0.00044931,30]
[357413637,1744052006965,-500.0,0.00044931,30]
[357413638,1744052006996,-500.0,0.00044931,30]
[357413639,1744052007028,-644.51,0.00044931,30]
[357413640,1744052007059,-500.0,0.00044931,30]
[357413641,1744052007091,-502.76,0.00044931,30]
[357413642,1744052007125,-500.0,0.00044931,30]
[357413643,1744052007158,-500.0,0.00044931,30]
[357413644,1744052007190,-500.0,0.00044931,30]
[357413645,1744052007221,-1019.28,0.00044931,30]
[357413646,1744052007253,-500.0,0.00044931,30]
[357413647,1744052007286,-859.96,0.00044931,30]
[357413648,1744052007318,-500.0,0.00044931,30]
[357413649,1744052007351,-869.55,0.00044931,30]
[357413650,1744052007536,-500.0,0.00044931,30]
[357413651,1744052007580,-500.0,0.00044931,30]
[357413652,1744052007615,-500.0,0.00044931,30]
[357413653,1744052007648,-700.09,0.00044931,30]
[357413654,1744052007680,-500.0,0.00044931,30]
[357413655,1744052007711,-645.57,0.00044931,30]
[357413656,1744052007743,-512.08,0.00044931,30]
[357413657,1744052007773,-500.0,0.00044931,30]
[357413658,1744052007805,-500.0,0.00044931,30]
[357413659,1744052007837,-500.0,0.00044931,30]
[357413660,1744052007870,-500.0,0.00044931,30]
[357413661,1744052007905,-500.0,0.00044931,30]
[357413662,1744052007937,-500.0,0.00044931,30]
[357413663,1744052007968,-968.13,0.00044931,30]
[357413664,1744052008002,-992.6,0.00044931,30]
[357413665,1744052008033,-500.0,0.00044931,30]
[357413666,1744052008064,-500.0,0.00044931,30]
[357413667,1744052008096,-500.0,0.00044931,30]
[357413668,1744052008127,-1323.13,0.00044931,30]
[357413669,1744052008159,-500.0,0.00044931,30]
[357413670,1744052008190,-500.0,0.00044931,30]
[357413671,1744052008222,-564.4,0.00044931,30]
[357413672,1744052008257,-500.0,0.00044931,30]
[357413673,1744052008288,-706.64,0.00044931,30]
[357413674,1744052008320,-500.0,0.00044931,30]
[357413675,1744052008350,-570.80493763,0.00044931,30]
[357413676,1744052008381,-500.0,0.00044931,30]
[357413677,1744052008412,-500.0,0.00044931,30]
[357413678,1744052008444,-500.0,0.00044931,30]
[357413679,1744052008476,-327.69626324,0.00044931,30]
[357413680,1744052008508,-500.0,0.00044931,30]
[357413681,1744052008538,-784.69,0.00044931,30]
[357413682,1744052008568,-507.02405778,0.00044931,30]
[357413683,1744052008598,-500.0,0.00044931,30]
[357413684,1744052008627,-500.0,0.00044931,30]
[357413685,1744052008658,-500.0,0.00044931,30]
[357413686,1744052008690,-500.0,0.00044931,30]
[357413687,1744052008722,-528.96,0.00044931,30]
[357413688,1744052008755,-516.35,0.00044931,30]
[357413689,1744052008786,-500.0,0.00044931,30]
[357413690,1744052008818,-730.68,0.00044931,30]
[357413691,1744052008854,-500.0,0.00044931,30]
[357413692,1744052008884,-500.0,0.00044931,30]
[357413693,1744052008915,-500.0,0.00044931,30]
[357413694,1744052008946,-500.0,0.00044931,30]
[357413695,1744052008976,-500.0,0.00044931,30]
[357413696,1744052009008,-605.46,0.00044931,30]
[357413697,1744052009038,-1150.56,0.00044931,30]
[357413698,1744052009069,-500.0,0.00044931,30]
[357413699,1744052009099,-500.0,0.00044931,30]
[357413700,1744052009130,-500.0,0.00044931,30]
[357413701,1744052009162,-500.0,0.00044931,30]
[357413702,1744052009194,-645.16,0.00044931,30]
[357413703,1744052009227,-1000.0,0.00044931,120]
[357413704,1744052009260,-500.0,0.00044931,30]
[357413705,1744052009297,-660.97,0.00044931,30]
[357413706,1744052009332,-500.0,0.00044931,30]
[357413707,1744052009367,-500.0,0.00044931,30]
[357413708,1744052009400,-859.28,0.00044931,30]
[357413709,1744052009434,-500.0,0.00044931,30]
[357413710,1744052009467,-500.0,0.00044931,30]
[357413711,1744052009498,-500.0,0.00044931,30]
[357413712,1744052009530,-500.0,0.00044931,30]
[357413713,1744052009562,-542.41,0.00044931,30]
[357413714,1744052009596,-500.0,0.00044931,30]
[357413715,1744052009630,-500.0,0.00044931,30]
[357413716,1744052009666,-500.0,0.00044931,30]
[357413717,1744052009703,-500.0,0.00044931,30]
[357413718,1744052009740,-500.0,0.00044931,30]
[357413719,1744052009772,-536.64,0.00044931,30]
[357413720,1744052009806,-500.0,0.00044931,30]
[357413721,1744052009838,-500.0,0.00044931,30]
[357413722,1744052009870,-507.26,0.00044931,30]
[357413723,1744052009900,-500.0,0.00044931,30]
[357413724,1744052009932,-724.23,0.00044931,30]
[357413725,1744052009962,-670.73,0.00044931,30]
[357413726,1744052009994,-500.0,0.00044931,30]
[357413727,1744052010026,-500.0,0.00044931,30]
[357413728,1744052010060,-500.0,0.00044931,30]
[357413729,1744052010092,-500.0,0.00044931,30]
[357413730,1744052010124,-661.55,0.00044931,30]
[357413731,1744052010156,-500.0,0.00044931,30]
[357413732,1744052010188,-500.0,0.00044931,30]
[357413733,1744052010221,-500.0,0.00044931,30]
[357413734,1744052010254,-500.0,0.00044931,30]
[357413735,1744052010450,-500.0,0.00044931,30]
[357413736,1744052010488,-500.0,0.00044931,30]
[357413737,1744052010523,-500.0,0.00044931,30]
[357413738,1744052010557,-500.0,0.00044931,30]
[357413739,1744052010589,-500.0,0.00044931,30]
[357413740,1744052010623,-686.04,0.00044931,30]
[357413741,1744052010655,-500.0,0.00044931,30]
[357413742,1744052010687,-693.21,0.00044931,30]
[357413743,1744052010721,-500.0,0.00044931,30]
[357413744,1744052010756,-500.0,0.00044931,30]
[357413745,1744052010790,-500.0,0.00044931,30]
[357413746,1744052010826,-747.07,0.00044931,30]
[357413747,1744052010860,-500.0,0.00044931,30]
[357413748,1744052010894,-500.0,0.00044931,30]
[357413749,1744052010926,-503.54,0.00044931,30]
[357413750,1744052010958,-500.0,0.00044931,30]
[357413751,1744052010991,-607.35,0.00044931,30]
[357413752,1744052011023,-500.0,0.00044931,30]
[357413753,1744052011057,-500.0,0.00044931,30]
[357413754,1744052011089,-500.0,0.00044931,30]
[357413755,1744052011123,-500.0,0.00044931,30]
[357413756,1744052011156,-559.02,0.00044931,30]
[357413757,1744052011187,-500.0,0.00044931,30]
[357413758,1744052011221,-484.14916057,0.00044931,30]
[357413759,1744052011257,-500.0,0.00044931,30]
[357413760,1744052011295,-500.0,0.00044931,30]
[357413761,1744052011335,-160.82507594,0.00044931,30]
[357413762,1744052011379,-500.0,0.00044931,30]
[357413763,1744052011421,-913.14,0.00044931,30]
[357413764,1744052011465,-500.0,0.00044931,30]
[357413765,1744052011506,-500.0,0.00044931,30]
[357413766,1744052011547,-675.02,0.00044931,30]
[357413767,1744052011587,-524.82,0.00044931,30]
[357413768,1744052011624,-500.0,0.00044931,30]
[357413769,1744052011658,-500.0,0.00044931,30]
[357413770,1744052011692,-500.0,0.00044931,30]
[357413771,1744052011726,-500.0,0.00044931,30]
[357413772,1744052011761,-500.0,0.00044931,30]
[357413773,1744052011792,-500.0,0.00044931,30]
[357413774,1744052011824,-500.0,0.00044931,30]
[357413775,1744052011860,-563.12,0.00044931,30]
[357413776,1744052011903,-500.0,0.00044931,30]
[357413777,1744052011962,-611.79,0.00044931,30]
[357413778,1744052012017,-806.75,0.00044931,30]
[357413779,1744052012081,-501.99,0.00044931,30]
[357413780,1744052012144,-518.14,0.00044931,30]
[357413781,1744052012200,-500.0,0.00044931,30]
[357413782,1744052012250,-500.0,0.00044931,30]
[357413783,1744052012301,-500.0,0.00044931,30]
[357413784,1744052012355,-500.0,0.00044931,30]
[357413785,1744052012406,-620.74,0.00044931,30]
[357413786,1744052012456,-1144.72,0.00044931,30]
[357413787,1744052012505,-624.3,0.00044931,30]
[357413788,1744052012557,-564.79,0.00044931,30]
[357413789,1744052012606,-629.75,0.00044931,30]
[357413790,1744052012658,-526.67,0.00044931,30]
[357413791,1744052012710,-500.0,0.00044931,30]
[357413792,1744052012762,-500.0,0.00044931,30]
[357413793,1744052012811,-500.0,0.00044931,30]
[357413794,1744052012867,-500.0,0.00044931,30]
[357413795,1744052012916,-795.52,0.00044931,30]
[357413796,1744052012965,-500.0,0.00044931,30]
[357413797,1744052013014,-582.07,0.00044931,30]
[357413798,1744052013067,-655.74,0.00044931,30]
[357413799,1744052013122,-500.0,0.00044931,30]
[357413800,1744052013176,-500.0,0.00044931,30]
[357413801,1744052013237,-500.0,0.00044931,30]
[357413802,1744052013292,-500.0,0.00044931,30]
[357413803,1744052013346,-620.9,0.00044931,30]
[357413804,1744052013402,-500.0,0.00044931,30]
[357413805,1744052013458,-500.0,0.00044931,30]
[357413806,1744052013514,-1926.37,0.00044931,30]
[357413807,1744052013568,-500.0,0.00044931,30]
[357413808,1744052013620,-500.0,0.00044931,30]
[357413809,1744052013671,-652.44,0.00044931,30]
[357413810,1744052013723,-500.0,0.00044931,30]
[357413811,1744052013775,-784.6,0.00044931,30]
[357413812,1744052013827,-919.96,0.00044931,30]
[357413813,1744052013881,-500.0,0.00044931,30]
[357413814,1744052013931,-500.0,0.00044931,30]
[357413815,1744052013982,-500.0,0.00044931,30]
[357413816,1744052014036,-500.0,0.00044931,30]
[357413817,1744052014318,-500.0,0.00044931,30]
[357413818,1744052014358,-494.05333559,0.00044931,30]
[357413819,1744052014394,-500.0,0.00044931,30]
[357413820,1744052014430,-560.36,0.00044931,30]
[357413821,1744052014464,-584.8609145,0.00044931,30]
[357413822,1744052014499,-210.92881604,0.00044931,30]
[357413823,1744052014534,-500.0,0.00044931,30]
[357413824,1744052014568,-500.0,0.00044931,30]
[357413825,1744052014602,-500.0,0.00044931,30]
[357413826,1744052014635,-500.0,0.00044931,30]
[357413827,1744052014671,-836.55,0.00044931,30]
[357413828,1744052014707,-500.0,0.00044931,30]
[357413829,1744052014745,-500.0,0.00044931,30]
[357413830,1744052014780,-862.42,0.00044931,30]
[357413831,1744052014815,-500.0,0.00044931,30]
[357413832,1744052014851,-500.0,0.00044931,30]
[357413833,1744052014884,-500.0,0.00044931,30]
[357413834,1744052014917,-592.28,0.00044931,30]
[357413835,1744052014949,-1065.99,0.00044931,30]
[357413836,1744052014982,-177.62976577,0.00044931,30]
[357413837,1744052015016,-500.0,0.00044931,30]
[357413838,1744052015047,-500.0,0.00044931,30]
[357413839,1744052015079,-493.79420617,0.00044931,30]
[357413840,1744052015113,-858.61,0.00044931,30]
[357413841,1744052015145,-1373.81,0.00044931,30]
[357413842,1744052015178,-649.27,0.00044931,30]
[357413843,1744052015211,-564.57,0.00044931,30]
[357413844,1744052015245,-500.0,0.00044931,30]
[357413845,1744052015280,-916.41,0.00044931,30]
[357413846,1744052015312,-500.0,0.00044931,30]
[357413847,1744052015344,-891.4,0.00044931,30]
[357413848,1744052015375,-532.32,0.00044931,30]
[357413849,1744052015405,-543.53,0.00044931,30]
[357413850,1744052015437,-500.0,0.00044931,30]
[357413851,1744052015472,-790.17,0.00044931,30]
[357413852,1744052015507,-500.0,0.00044931,30]
[357413853,1744052015539,-758.03,0.00044931,30]
[357413854,1744052015571,-833.66,0.00044931,30]
[357413855,1744052015603,-503.31,0.00044931,30]
[357413856,1744052015634,-500.0,0.00044931,30]
[357413857,1744052015665,-500.0,0.00044931,30]
[357413858,1744052015698,-500.0,0.00044931,30]
[357413859,1744052015729,-500.0,0.00044931,30]
[357413860,1744052015761,-1829.4,0.00044931,30]
[357413861,1744052015792,-184.32,0.00044931,30]
[357413862,1744052015823,-517.63,0.00044931,30]
[357413863,1744052015857,-500.0,0.00044931,30]
[357413864,1744052015888,-500.0,0.00044931,30]
[357413865,1744052015918,-845.67,0.00044931,30]
[357413866,1744052015948,-1074.38,0.00044931,30]
[357413867,1744052015979,-500.0,0.00044931,30]
[357413868,1744052016013,-500.0,0.00044931,30]
[357413869,1744052016047,-500.0,0.00044931,30]
[357413870,1744052016081,-558.47,0.00044931,30]
[357413871,1744052016116,-500.0,0.00044931,30]
[357413872,1744052016149,-523.06,0.00044931,30]
[357413873,1744052016182,-865.29,0.00044931,30]
[357413874,1744052016215,-854.08,0.00044931,30]
[357413875,1744052016249,-500.0,0.00044931,30]
[357413876,1744052016283,-691.38,0.00044931,30]
[357413877,1744052016315,-500.0,0.00044931,30]
[357413878,1744052016347,-553.19,0.00044931,30]
[357413879,1744052016379,-560.87,0.00044931,30]
[357413880,1744052016412,-563.55707267,0.00044931,30]
[357413881,1744052016444,-500.0,0.00044931,30]
[357413882,1744052016476,-500.0,0.00044931,30]
[357413883,1744052016509,-628.94,0.00044931,30]
[357413884,1744052016542,-743.25,0.00044931,30]
[357413885,1744052016576,-403.1661235,0.00044931,30]
[357413886,1744052016609,-859.7,0.00044931,30]
[357413887,1744052016641,-500.0,0.00044931,30]
[357413888,1744052016674,-540.89,0.00044931,30]
[357413889,1744052016708,-839.96,0.00044931,30]
[357413890,1744052016743,-238.59831131,0.00044931,30]
[357413891,1744052016778,-863.6,0.00044931,30]
[357413892,1744052016814,-500.0,0.00044931,30]
[357413893,1744052016860,-790.05,0.00044931,30]
[357413894,1744052016901,-500.0,0.00044931,30]
[357413895,1744052016945,-671.15,0.00044931,30]
[357413896,1744052016995,-500.0,0.00044931,30]
[357413897,1744052017041,-1494.76,0.00044931,30]
[357413898,1744052017081,-500.0,0.00044931,30]
[357413899,1744052017119,-545.70204717,0.00044931,30]
[357413900,1744052017159,-686.53,0.00044931,30]
[357413901,1744052017198,-500.0,0.00044931,30]
[357413902,1744052017237,-788.7,0.00044931,30]
[357413903,1744052017279,-741.99,0.00044931,30]
[357413904,1744052017316,-997.31,0.00044931,30]
[357413905,1744052017513,-500.0,0.00044931,30]
[357413906,1744052017552,-773.73,0.00044931,30]
[357413907,1744052017590,-2057.62,0.00044931,30]
[357413908,1744052017626,-500.0,0.00044931,30]
[357413909,1744052017661,-500.0,0.00044931,30]
[357413910,1744052017694,-651.98,0.00044931,30]
[357413911,1744052017728,-554.54,0.00044931,30]
[357413912,1744052017765,-682.23,0.00044931,30]
[357413913,1744052017798,-500.0,0.00044931,30]
[357413914,1744052017831,-1655.78,0.00044931,30]
[357413915,1744052017863,-500.0,0.00044931,30]
[357413916,1744052017898,-620.57,0.00044931,30]
[357413917,1744052017933,-1132.12,0.00044931,30]
[357413918,1744052017964,-500.0,0.00044931,30]
[357413919,1744052017998,-917.62,0.00044931,30]
[357413920,1744052018030,-545.03,0.00044931,30]
[357413921,1744052018063,-500.0,0.00044931,30]
[357413922,1744052018096,-500.0,0.00044931,30]
[357413923,1744052018128,-500.0,0.00044931,30]
[357413924,1744052018161,-500.0,0.00044931,30]
[357413925,1744052018201,-803.81,0.00044931,30]
[357413926,1744052018238,-500.0,0.00044931,30]
[357413927,1744052018276,-500.0,0.00044931,30]
[357413928,1744052018312,-500.0,0.00044931,30]
[357413929,1744052018348,-841.78,0.00044931,30]
[357413930,1744052018386,-754.16,0.00044931,30]
[357413931,1744052018423,-500.0,0.00044931,30]
[357413932,1744052018459,-1044.52,0.00044931,30]
[357413933,1744052018498,-750.42,0.00044931,30]
[357413934,1744052018533,-500.0,0.00044931,30]
[357413935,1744052018566,-500.0,0.00044931,30]
[357413936,1744052018598,-1038.84,0.00044931,30]
[357413937,1744052018637,-2720.92,0.00044931,30]
[357413938,1744052018679,-574.64,0.00044931,30]
[357413939,1744052018722,-1000.0,0.00044931,120]
[357413940,1744052018765,-500.0,0.00044931,30]
[357413941,1744052018809,-614.45,0.00044931,30]
[357413942,1744052018854,-500.0,0.00044931,30]
[357413943,1744052018893,-546.27,0.00044931,30]
[357413944,1744052018934,-1091.37,0.00044931,30]
[357413945,1744052018976,-1129.55,0.00044931,30]
[357413946,1744052019017,-500.0,0.00044931,30]
[357413947,1744052019059,-1169.11,0.00044931,30]
[357413948,1744052019102,-500.0,0.00044931,30]
[357413949,1744052019141,-994.15,0.00044931,30]
[357413950,1744052019185,-500.0,0.00044931,30]
[357413951,1744052019227,-684.77,0.00044931,30]
[357413952,1744052019269,-928.97,0.00044931,30]
[357413953,1744052019312,-624.54,0.00044931,30]
[357413954,1744052019361,-3417.01,0.00044931,30]
[357413955,1744052019409,-500.0,0.00044931,30]
[357413956,1744052019451,-500.0,0.00044931,30]
[357413957,1744052019495,-500.0,0.00044931,30]
[357413958,1744052019538,-787.78,0.00044931,30]
[357413959,1744052019581,-500.0,0.00044931,30]
[357413960,1744052019624,-500.0,0.00044931,30]
[357413961,1744052019668,-586.38,0.00044931,30]
[357413962,1744052019714,-1555.27,0.00044931,30]
[357413963,1744052019754,-894.85,0.00044931,30]
[357413964,1744052019798,-500.0,0.00044931,30]
[357413965,1744052019842,-286.01196781,0.00044931,30]
[357413966,1744052019884,-1566.53,0.00044931,30]
[357413967,1744052019940,-658.49,0.00044931,30]
[357413968,1744052019980,-1017.12,0.00044931,30]
[357413969,1744052020019,-500.0,0.00044931,30]
[357413970,1744052020056,-2431.64,0.00044931,30]
[357413971,1744052020093,-3642.2,0.00044931,30]
[357413972,1744052020128,-500.0,0.00044931,30]
[357413973,1744052020162,-500.0,0.00044931,30]
[357413974,1744052020196,-500.0,0.00044931,30]
[357413975,1744052020230,-500.0,0.00044931,30]
[357413976,1744052020267,-533.12,0.00044931,30]
[357413977,1744052020302,-388.65648166,0.00044931,30]
[357413978,1744052020337,-500.0,0.00044931,30]
[357413979,1744052020371,-648.63,0.00044931,30]
[357413980,1744052020408,-969.69,0.00044931,30]
[357413981,1744052020445,-500.0,0.00044931,30]
[357413982,1744052020482,-500.0,0.00044931,30]
[357413983,1744052020519,-1281.92,0.00044931,30]
[357413984,1744052020552,-690.83,0.00044931,30]
[357413985,1744052020587,-500.0,0.00044931,30]
[357413986,1744052020622,-551.0,0.00044931,30]
[357413987,1744052020661,-505.98,0.00044931,30]
[357413988,1744052020703,-500.0,0.00044931,30]